fUSD/lending_fUSD_20250724
["ID","MTS","AMOUNT","RATE_DAILY","PERIOD"]
[374589262,1753363858628,-28985.64061334,0.00034,15]
[374589265,1753363858645,-767.32588233,0.00034,2]
[374589268,1753363858661,-1000.0,0.00034,5]
[374589270,1753363858679,-21660.36975554,0.00034,120]
[374589273,1753363858695,-681.90054766,0.00034,2]
[374589276,1753363858712,-78695.36505144,0.00034,2]
[374589279,1753363858730,-510.0,0.00034068,24]
[374589281,1753363858746,-512.5,0.0003408,31]
[374589284,1753363858762,-2118.0,0.0003408,2]
[374589287,1753363858778,-736.070545,0.0003408,2]
[374589289,1753363858795,-305.20023,0.00034088,7]
[374589292,1753363858811,-150.0,0.00034089,120]
[374589295,1753363858829,-959.0,0.00034089,2]
[374589297,1753363858844,-890.0,0.00034089,2]
[374589300,1753363858859,-953.0,0.00034089,2]
[374589303,1753363858874,-4129.0,0.00034089,2]
[374589305,1753363858889,-363.2,0.000341,7]
[374589308,1753363858904,-236.0,0.000341,7]
[374589310,1753363858919,-943.99,0.000341,7]
[374589313,1753363858934,-1765.52,0.000341,7]
[374589315,1753363858949,-966.71,0.000341,7]
[374589318,1753363858965,-151.0,0.000341,120]
[374589320,1753363858981,-331.5,0.000341,14]
[374589323,1753363858995,-388.44223193,0.00034114,2]
[374589325,1753363859010,-500.0,0.00034177,120]
[374589328,1753363859025,-512.5,0.0003418,53]
[374589330,1753363859039,-159.96333709,0.00034203,15]
[374589333,1753363859054,-1057.52215546,0.00034213,2]
[374589335,1753363859069,-3501.47997479,0.00034218,2]
[374589338,1753363859082,-570.0,0.00034247,2]
[374589341,1753363859096,-4344.02,0.00034253,30]
[374589343,1753363859111,-4344.02,0.00034253,30]
[374589347,1753363859139,-512.5,0.0003428,74]
[374589350,1753363859157,-305.20023,0.00034288,7]
[374589352,1753363859175,-1548.0,0.000343,120]
[374589354,1753363859192,-512.5,0.0003438,54]
[374589357,1753363859210,-2041.67,0.000344,7]
[374589360,1753363859228,-2118.0,0.00034421,2]
[374589363,1753363859244,-151.0,0.00034421,7]
[374589365,1753363859260,-151.0,0.00034421,7]
[374589368,1753363859276,-500.0,0.00034457,120]
[374589370,1753363859291,-500.0,0.00034463,120]
[374589373,1753363859308,-512.5,0.0003448,33]
[374589375,1753363859323,-305.20023,0.00034488,7]
[374589378,1753363859340,-1000.0,0.000345,120]
[374589381,1753363859356,-1440.7609801,0.000345,120]
[374589383,1753363859373,-570.0,0.00034521,2]
[374589386,1753363859395,-4344.02,0.00034527,30]
[374589388,1753363859410,-4344.02,0.00034527,30]
[374589391,1753363859427,-3501.47997479,0.00034535,2]
[374589393,1753363859442,-939.0,0.00034567,5]
[374589396,1753363859460,-388.44223193,0.00034572,2]
[374589398,1753363859476,-150.0,0.00034574,120]
[374589400,1753363859490,-433.15,0.00034576,2]
[374589401,1753363859505,-353.36,0.00034576,2]
[374589402,1753363859519,-152.03,0.00034576,2]
[374589403,1753363859541,-2054.88,0.00034576,2]
[374589404,1753363859559,-512.5,0.0003458,61]
[374589405,1753363859577,-151.0,0.0003458,7]
[374589406,1753363859595,-151.0,0.0003458,7]
[374589407,1753363859612,-150.0,0.00034607,2]
[374589408,1753363859630,-1000.0,0.00034636,2]
[374589411,1753363859646,-512.5,0.0003468,86]
[374589413,1753363859662,-305.20023,0.00034688,7]
[374589416,1753363859678,-2993.17589418,0.00034696,2]
[374589418,1753363859693,-300.0,0.000347,10]
[374589421,1753363859708,-300.0,0.000347,10]
[374589423,1753363859724,-331.5,0.000347,14]
[374589426,1753363859738,-150.0,0.00034722,120]
[374589428,1753363859752,-500.0,0.00034749,120]
[374589431,1753363859766,-2118.0,0.00034762,2]
[374589433,1753363859780,-512.5,0.0003478,37]
[374589436,1753363859795,-570.0,0.00034795,2]
[374589438,1753363859809,-2000.0,0.000348,2]
[374589441,1753363859823,-4344.02,0.00034801,30]
[374589443,1753363859836,-4344.02,0.00034801,30]
[374589445,1753363859851,-159.96333709,0.00034845,15]
[374589448,1753363859865,-3501.47997479,0.00034853,2]
[374589450,1753363859881,-219.79,0.0003487,120]
[374589453,1753363859895,-150.5,0.0003487,120]
[374589455,1753363859910,-512.5,0.0003488,67]
[374589458,1753363859924,-150.5,0.0003488,120]
[374589461,1753363859944,-150.5,0.0003488,120]
[374589463,1753363859959,-305.20023,0.00034888,7]
[374589466,1753363859976,-150.5,0.0003489,120]
[374589469,1753363859992,-150.5,0.0003489,120]
[374589471,1753363860007,-156.07,0.0003489,120]
[374589474,1753363860023,-25000.0,0.000349,30]
[374589477,1753363860037,-6159.67416135,0.000349,2]
[374589479,1753363860052,-156.24265478,0.000349,5]
[374589482,1753363860068,-362.79295777,0.000349,5]
[374589484,1753363860084,-430.68489254,0.000349,5]
[374589487,1753363860099,-2041.67,0.000349,7]
[374589489,1753363860113,-2500.0,0.00034931,120]
[374589492,1753363860127,-2500.0,0.00034931,120]
[374589494,1753363860140,-800.89175465,0.00034931,120]
[374589497,1753363860155,-500.0,0.00034948,2]
[374589499,1753363860168,-201930.0193328,0.00034949,10]
[374589501,1753363860183,-151.0,0.00034949,7]
[374589504,1753363860196,-151.0,0.00034949,7]
[374589506,1753363860209,-221.829035,0.00034949,7]
[374589509,1753363860226,-221.829035,0.00034949,7]
[374589511,1753363860239,-151.0,0.00034949,7]
[374589514,1753363860255,-151.0,0.00034949,7]
[374589516,1753363860269,-151.0,0.00034949,7]
[374589518,1753363860283,-2551.97902328,0.00034978,33]
[374589520,1753363860298,-512.5,0.0003498,57]
[374589523,1753363860314,-234.88270645,0.00034986,7]
[374589525,1753363860328,-1534.82002984,0.00034999,3]
[374589528,1753363860347,-4355.71804168,0.00035,2]
[374589531,1753363860363,-2014.0,0.00035,2]
[374589533,1753363860377,-1207.11661621,0.00035,2]
[374589536,1753363860395,-1000.0,0.00035,10]
[374589538,1753363860411,-245.1,0.00035,2]
[374589541,1753363860429,-5624.22983822,0.00035,2]
[374589543,1753363860443,-10616.96823196,0.00035,2]
[374589546,1753363860457,-1069.20362207,0.00035,90]
[374589548,1753363860475,-1897.62938806,0.00035,120]
[374589551,1753363860490,-1000.0,0.00035,120]
[374589553,1753363860503,-400.894545,0.00035,120]
[374589555,1753363860517,-183218.24807195,0.00035,5]
[374589740,1753363862637,-278905.46927806,0.00035,5]
[374589742,1753363862657,-807.0,0.00028089,2]
[374589745,1753363862667,-34754.1538203,0.00035,5]
[374589747,1753363862681,-15972.16593689,0.00035,5]
[374589749,1753363862695,-452.48195006,0.00035,5]
[374590625,1753363924305,2500.0,0.00025592,120]
[374590626,1753363924397,2500.0,0.00027148,120]
[374590628,1753364070821,159.79,0.00013699,2]
[374590632,1753364240288,182.0,0.00027397,120]
[374590634,1753364318014,610.30535039,0.00016658,2]
[374590635,1753364318036,389.69464961,0.00016658,2]
[374590664,1753365031530,-332.05,0.00019178,2]
[374590665,1753365031541,-39.51,0.0002,2]
[374590666,1753365031553,-511.2864644,0.0002,2]
[374590667,1753365031809,-3540.7197709,0.0002,2]
[374590668,1753365031824,-332.05,0.00020731,2]
[374590669,1753365031834,-246.0,0.00022,2]
[374590670,1753365031844,-332.05,0.00022284,2]
[374590671,1753365031853,-210.04,0.00022529,2]
[374590672,1753365031863,-206.61247444,0.000229,8]
[374590673,1753365031873,-241.0,0.0002318,2]
[374590674,1753365031882,-206.6124744,0.00023381,9]
[374590675,1753365031892,-332.05,0.00023838,2]
[374590676,1753365031901,-206.6124744,0.00023863,10]
[374590677,1753365031911,-206.6124744,0.00024344,11]
[374590678,1753365031921,-236.0,0.0002437,2]
[374590680,1753365031930,-206.6124744,0.00024826,11]
[374590682,1753365031939,-288.0,0.00024954,2]
[374590684,1753365031949,-164.74,0.00025,2]
[374590693,1753365032365,-477.18900901,0.0002527,2]
[374590694,1753365032377,-839.91269601,0.00025271,2]
[374590695,1753365032388,-150.17,0.00025292,2]
[374590696,1753365032398,-304.23,0.00025292,2]
[374590697,1753365032407,-206.6124744,0.00025307,12]
[374590698,1753365032416,-332.05,0.00025391,2]
[374590699,1753365032426,-231.0,0.0002555,2]
[374590700,1753365032436,-206.6124744,0.00025789,13]
[374590701,1753365032446,-223.0,0.00025876,2]
[374590702,1753365032455,-340.0,0.00025877,2]
[374590703,1753365032465,-807.0,0.00025892,2]
[374590704,1753365032475,-953.0,0.00025892,2]
[374590705,1753365032485,-959.0,0.00025892,2]
[374590706,1753365032495,-1167.0,0.00025892,2]
[374590707,1753365032505,-216.01058468,0.00025892,2]
[374590708,1753365032517,-673.98941532,0.00025892,2]
[374590709,1753365032526,-4129.0,0.00025892,2]
[374590710,1753365032536,-358.69720409,0.00025892,2]
[374590711,1753365032550,-21020.30279591,0.00025892,2]
[374590712,1753365032560,-4872.705,0.00025892,2]
[374590713,1753365032570,-941.74,0.000261,2]
[374590714,1753365032579,-909.06,0.000261,2]
[374590715,1753365032589,-909.06,0.000262,2]
[374590716,1753365032599,-206.6124744,0.0002627,14]
[374590717,1753365032609,-226.0,0.0002673,2]
[374590718,1753365032619,-206.6124744,0.00026752,15]
[374590719,1753365032629,-909.06,0.000269,2]
[374590720,1753365032640,-332.05,0.00026944,2]
[374590721,1753365032650,-262.23,0.00027123,14]
[374590722,1753365032659,-262.23,0.00027123,14]
[374590723,1753365032669,-262.23,0.00027123,14]
[374590724,1753365032679,-262.23,0.00027123,14]
[374590725,1753365032690,-262.23,0.00027123,14]
[374590726,1753365032701,-262.23,0.00027123,14]
[374590727,1753365032711,-262.23,0.00027123,14]
[374590728,1753365032720,-262.23,0.00027123,14]
[374590729,1753365032730,-262.23,0.00027123,14]
[374590730,1753365032740,-262.23,0.00027123,14]
[374590731,1753365032749,-262.23,0.00027123,14]
[374590732,1753365032760,-262.23,0.00027123,14]
[374590733,1753365032770,-262.23,0.00027123,14]
[374590734,1753365032781,-262.23,0.00027123,14]
[374590735,1753365032791,-262.23,0.00027123,14]
[374590736,1753365032801,-262.23,0.00027123,14]
[374590737,1753365032811,-262.23,0.00027123,14]
[374590738,1753365032823,-262.23,0.00027123,14]
[374590739,1753365032834,-262.23,0.00027123,14]
[374590740,1753365032843,-262.23,0.00027123,14]
[374590741,1753365032853,-206.6124744,0.00027233,16]
[374590742,1753365032863,-150.0,0.00027397,2]
[374590743,1753365032873,-178.28463294,0.000274,2]
[374590744,1753365032883,-164.74,0.000275,2]
[374590745,1753365032894,-206.6124744,0.00027715,17]
[374590746,1753365032903,-221.0,0.0002792,3]
[374590747,1753365032914,-999.97,0.00028,2]
[374590748,1753365032924,-3000.0,0.00028,2]
[374590749,1753365032934,-3007.02,0.00028,2]
[374590750,1753365032944,-150.0,0.00028116,30]
[374590751,1753365032954,-150.0,0.00028118,2]
[374590752,1753365032964,-300.0,0.0002813,2]
[374590753,1753365032976,-206.6124744,0.00028196,18]
[374590754,1753365032988,-200.0,0.00028339,2]
[374590755,1753365032998,-200.0,0.00028339,2]
[374590756,1753365033008,-200.0,0.00028339,2]
[374590757,1753365033019,-200.0,0.00028339,2]
[374590758,1753365033028,-200.0,0.00028339,2]
[374590759,1753365033039,-200.0,0.00028339,2]
[374590760,1753365033049,-200.0,0.00028339,2]
[374590761,1753365033058,-200.0,0.00028339,2]
[374590762,1753365033069,-200.0,0.00028339,2]
[374590763,1753365033079,-200.0,0.00028339,2]
[374590764,1753365033088,-200.0,0.00028339,2]
[374590765,1753365033098,-200.0,0.00028339,2]
[374590766,1753365033108,-200.0,0.00028339,2]
[374590767,1753365033118,-200.0,0.00028339,2]
[374590768,1753365033127,-200.0,0.00028339,2]
[374590769,1753365033138,-200.0,0.00028339,2]
[374590770,1753365033147,-200.0,0.00028339,2]
[374590771,1753365033157,-200.0,0.00028339,2]
[374590772,1753365033167,-200.0,0.00028339,2]
[374590773,1753365033177,-200.0,0.00028339,2]
[374590774,1753365033187,-200.0,0.00028339,2]
[374590775,1753365033197,-183.0,0.00028339,2]
[374590776,1753365033207,-200.0,0.00028339,2]
[374590777,1753365033217,-200.0,0.00028339,2]
[374590778,1753365033227,-200.0,0.00028339,2]
[374590779,1753365033236,-200.0,0.00028339,2]
[374590780,1753365033246,-200.0,0.00028339,2]
[374590781,1753365033256,-200.0,0.00028339,2]
[374590782,1753365033266,-200.0,0.00028339,2]
[374590783,1753365033275,-200.0,0.00028339,2]
[374590784,1753365033285,-200.0,0.00028339,2]
[374590785,1753365033295,-200.0,0.00028339,2]
[374590786,1753365033305,-200.0,0.00028339,2]
[374590787,1753365033315,-200.0,0.00028339,2]
[374590788,1753365033325,-200.0,0.00028339,2]
[374590789,1753365033335,-202.0,0.00028339,2]
[374590790,1753365033345,-168.0,0.00028466,2]
[374590791,1753365033356,-332.05,0.00028497,2]
[374590792,1753365033366,-600.78,0.00028553,7]
[374590793,1753365033376,-1543.54,0.00028671,30]
[374590794,1753365033386,-381.62,0.00028672,2]
[374590795,1753365033396,-206.6124744,0.00028678,19]
[374590796,1753365033406,-500.0,0.00028779,120]
[374590797,1753365033416,-500.0,0.00028779,120]
[374590798,1753365033426,-500.0,0.00028779,120]
[374590799,1753365033435,-150.0,0.00028839,2]
[374590800,1753365033445,-807.0,0.00028892,2]
[374590801,1753365033455,-953.0,0.00028892,2]
[374590802,1753365033464,-959.0,0.00028892,2]
[374590803,1753365033474,-1167.0,0.00028892,2]
[374590804,1753365033484,-890.0,0.00028892,2]
[374590805,1753365033495,-4129.0,0.00028892,2]
[374590806,1753365033505,-21379.0,0.00028892,2]
[374590807,1753365033515,-909.06,0.000289,2]
[374590808,1753365033525,-217.0,0.000291,3]
[374590809,1753365033535,-206.6124744,0.00029159,20]
[374590810,1753365033545,-2021.236,0.00029199,22]
[374590811,1753365033555,-159.78,0.00029199,22]
[374590812,1753365033566,-5800.0,0.00029285,2]
[374590813,1753365033576,-5800.0,0.00029293,2]
[374590814,1753365033586,-151.57525315,0.0002945,2]
[374590815,1753365033597,-150.0,0.0002956,2]
[374590816,1753365033607,-1000.0,0.00029615,2]
[374590817,1753365033617,-206.6124744,0.00029641,21]
[374590818,1753365033628,-165.32,0.00029886,2]
[374590819,1753365033640,-156.61,0.00029965,2]
[374590820,1753365033650,-164.74,0.0003,2]
[374590821,1753365033661,-332.05,0.0003005,2]
[374590822,1753365033671,-2000.0,0.000301,2]
[374590823,1753365033681,-156.61,0.00030115,2]
[374590824,1753365033692,-206.6124744,0.00030122,22]
[374590825,1753365033702,-223.15004366,0.00030137,2]
[374590826,1753365033712,-156.61,0.00030265,2]
[374590827,1753365033722,-150.0,0.00030281,2]
[374590828,1753365033733,-212.0,0.0003029,3]
[374590829,1753365033743,-206.6124744,0.00030604,23]
[374590830,1753365033754,-5000.0,0.0003069,2]
[374590831,1753365033764,-437.5,0.000307,3]
[374590832,1753365033774,-437.5,0.000307,3]
[374590833,1753365033785,-666.0,0.00030742,3]
[374590834,1753365033795,-460.06,0.00030875,2]
[374590835,1753365033806,-393.0,0.00030877,2]
[374590836,1753365033818,-1800.0,0.00030959,120]
[374590837,1753365033830,-150.0,0.00031002,2]
[374590838,1753365033840,-206.6124744,0.00031085,24]
[374590839,1753365033849,-167.22,0.00031286,120]
[374590840,1753365033859,-207.0,0.0003147,3]
[374590841,1753365033869,-206.6124744,0.00031567,25]
[374590842,1753365033879,-200.0,0.00031582,2]
[374590843,1753365033892,-332.05,0.00031603,2]
[374590844,1753365033902,-300.0,0.000317,5]
[374590845,1753365033912,-300.0,0.000317,5]
[374590846,1753365033923,-150.0,0.00031723,2]
[374590847,1753365033933,-396.257,0.00031892,2]
[374590848,1753365033945,-303.878,0.00031892,2]
[374590849,1753365033956,-1167.0,0.00031892,2]
[374590850,1753365033966,-890.0,0.00031892,2]
[374590851,1753365033976,-4129.0,0.00031892,2]
[374590852,1753365033986,-21379.0,0.00031892,2]
[374590853,1753365033996,-1444.0,0.00031945,120]
[374590854,1753365034006,-150.0,0.0003203,7]
[374590855,1753365034017,-150.0,0.0003203,7]
[374590856,1753365034028,-150.0,0.0003203,7]
[374590857,1753365034038,-206.6124744,0.00032048,26]
[374590858,1753365034049,-150.0,0.00032444,2]
[374590859,1753365034059,-164.74,0.000325,2]
[374590860,1753365034070,-206.6124744,0.0003253,27]
[374590861,1753365034080,-202.0,0.0003265,3]
[374590862,1753365034090,-510.0,0.00032688,2]
[374590863,1753365034100,-300.0,0.000327,7]
[374590864,1753365034110,-300.0,0.000327,7]
[374590865,1753365034120,-854.1730717,0.0003273,2]
[374590866,1753365034130,-200.0,0.00032736,2]
[374590867,1753365034142,-10000.0,0.0003283,2]
[374590868,1753365034152,-545.79,0.00032869,10]
[374590869,1753365034162,-500.0,0.00032876,30]
[374590870,1753365034173,-500.0,0.00032876,120]
[374590871,1753365034183,-500.0,0.00032876,2]
[374590872,1753365034192,-500.0,0.00032876,2]
[374590873,1753365034202,-403.89360153,0.00032876,2]
[374590874,1753365034211,-400.0,0.00032876,120]
[374590875,1753365034221,-400.0,0.00032876,120]
[374590876,1753365034230,-500.0,0.00032876,120]
[374590877,1753365034240,-500.0,0.00032876,120]
[374590878,1753365034249,-500.0,0.00032876,120]
[374590879,1753365034259,-500.0,0.00032876,120]
[374590880,1753365034268,-500.0,0.00032876,120]
[374590881,1753365034277,-500.0,0.00032876,120]
[374590882,1753365034287,-500.0,0.00032876,120]
[374590883,1753365034297,-300.0,0.00032876,120]
[374590884,1753365034307,-500.0,0.00032876,120]
[374590885,1753365034317,-500.0,0.00032876,2]
[374590886,1753365034326,-500.0,0.00032876,2]
[374590887,1753365034336,-500.0,0.00032876,2]
[374590888,1753365034345,-500.0,0.00032876,2]
[374590889,1753365034355,-480.0,0.00032876,120]
[374590890,1753365034364,-839.91269601,0.00032876,120]
[374590891,1753365034374,-2000.0,0.000329,2]
[374590892,1753365034383,-545.79661811,0.00032969,41]
[374590893,1753365034395,-206.6124744,0.00033011,28]
[374590894,1753365034405,-854.1730717,0.0003304,2]
[374590895,1753365034417,-10000.0,0.00033104,2]
[374590896,1753365034426,-332.05,0.00033156,2]
[374590897,1753365034436,-150.0,0.00033165,2]
[374590898,1753365034445,-2825.24,0.000332,7]
[374590899,1753365034455,-1000.0,0.00033317,2]
[374590900,1753365034464,-854.1730717,0.0003335,2]
[374590901,1753365034474,-10000.0,0.00033378,2]
[374590902,1753365034484,-209.0,0.000334,2]
[374590903,1753365034494,-206.6124744,0.00033493,29]
[374590904,1753365034504,-10000.0,0.00033652,2]
[374590905,1753365034514,-854.1730717,0.00033659,2]
[374590906,1753365034523,-300.0,0.000337,8]
[374590907,1753365034533,-300.0,0.000337,8]
[374590908,1753365034543,-158.46566613,0.00033753,2]
[374590909,1753365034553,-288.0,0.00033784,2]
[374590910,1753365034563,-197.0,0.0003384,3]
[374590911,1753365034573,-150.0,0.00033886,2]
[374590912,1753365034583,-10000.0,0.00033926,2]
[374590913,1753365034593,-1266.153596,0.00033949,30]
[374590914,1753365034603,-854.1730717,0.00033969,2]
[374590915,1753365034613,-206.6124744,0.00033974,29]
[374590916,1753365034623,-748.50588,0.00034,10]
[374590917,1753365034632,-1000.0,0.00034,120]
[374590918,1753365034644,-909.06,0.00034,2]
[374590919,1753365034654,-681.77779988,0.0003408,2]
[374590920,1753365034664,-10000.0,0.000342,2]
[374590921,1753365034674,-209.0,0.000342,2]
[374590922,1753365034684,-209.0,0.000342,2]
[374590923,1753365034694,-276.0,0.000342,2]
[374590924,1753365034704,-500.0,0.00034252,2]
[374590925,1753365034715,-2172.01,0.00034253,30]
[374590926,1753365034724,-2172.01,0.00034253,30]
[374590927,1753365034735,-2172.01,0.00034253,30]
[374590928,1753365034748,-2172.01,0.00034253,30]
[374590929,1753365034758,-854.1730717,0.00034279,2]
[374590930,1753365034768,-839.91269601,0.000343,30]
[374590931,1753365034778,-510.0,0.00034395,5]
[374590932,1753365034788,-206.6124744,0.00034456,30]
[374590933,1753365034798,-10000.0,0.00034473,2]
[374590934,1753365034808,-1587.08071165,0.00034475,2]
[374590935,1753365034819,-1000.0,0.000345,120]
[374590936,1753365034830,-2172.01,0.00034527,30]
[374590937,1753365034840,-2172.01,0.00034527,30]
[374590938,1753365034849,-172.46,0.00034585,2]
[374590939,1753365034861,-713.59,0.00034585,2]
[374590940,1753365034871,-300.81,0.00034585,2]
[374590941,1753365034880,-329.54,0.00034585,2]
[374590942,1753365034891,-150.0,0.00034585,2]
[374590943,1753365034902,-431.22,0.00034585,2]
[374590944,1753365034913,-938.86,0.00034585,2]
[374590945,1753365034923,-150.0,0.00034585,2]
[374590946,1753365034933,-150.0,0.00034585,2]
[374590947,1753365034942,-854.1730717,0.00034589,2]
[374590948,1753365034953,-150.0,0.00034607,2]
[374590949,1753365034962,-242.77957875,0.00034634,2]
[374590950,1753365034974,-13100.7895762,0.0003464,3]
[374590951,1753365034985,-32685.14884849,0.0003465,2]
[374591121,1753365040036,-839.91269601,0.0002527,2]
[374591123,1753365040045,-408.34369516,0.00025892,2]
[374591125,1753365040057,-454.65630484,0.00025892,2]
[374591127,1753365040066,-107.37989516,0.00028892,2]
[374591132,1753365040104,-755.62010484,0.00028892,2]
[374591134,1753365040113,-400.0,0.00033925,2]
[374591136,1753365040123,-400.0,0.00033925,2]
[374591138,1753365040133,-160.18003527,0.00033925,2]
[374591141,1753365040147,-239.81996473,0.00033925,2]
[374591143,1753365040156,-400.0,0.00033925,2]
[374591145,1753365040165,-365.0799693,0.00033925,2]
[374591147,1753365040176,-34.9200307,0.00033925,2]
[374591149,1753365040186,-400.0,0.00033925,2]
[374591151,1753365040195,-400.0,0.00033925,2]
[374591153,1753365040204,-400.0,0.00033925,2]
[374591155,1753365040214,-400.0,0.00033925,2]
[374591157,1753365040223,-1339.92666139,0.0003465,2]
[374591405,1753365042635,-789.5,0.00030443,30]
[374591407,1753365042648,-863.0,0.00031892,2]
[374591409,1753365042658,-400.0,0.00033925,2]
[374591411,1753365042667,-400.0,0.00033925,2]
[374591413,1753365042677,-400.0,0.00033925,2]
[374591415,1753365042687,-400.0,0.00033925,2]
[374591417,1753365042696,-400.0,0.00033925,2]
[374591419,1753365042706,-400.0,0.00033925,2]
[374591421,1753365042716,-400.0,0.00033925,2]
[374591423,1753365042727,-400.0,0.00033925,2]
[374591425,1753365042736,-400.0,0.00033925,2]
[374591427,1753365042746,-400.0,0.00033925,2]
[374591429,1753365042756,-400.0,0.00033925,2]
[374591431,1753365042765,-1082.2362,0.0003465,2]
[374591433,1753365042777,-606.28598799,0.0003465,2]
[374591438,1753365042807,-5657.10939115,0.0003465,2]
[374591450,1753365042924,-400.0,0.00033925,2]
[374591452,1753365042934,-521.97021426,0.0003465,2]
[374591454,1753365042943,-288.0,0.00034692,2]
[374591456,1753365042953,-300.0,0.000347,10]
[374591458,1753365042963,-300.0,0.000347,10]
[374591460,1753365042972,-332.05,0.0003471,2]
[374591462,1753365042982,-10.56309306,0.00034725,15]
[374591574,1753365045595,-400.0,0.00033925,2]
[374591575,1753365045605,-196.12954937,0.00033925,2]
[374591576,1753365045615,-147.60811453,0.00034725,15]
[374591577,1753365045625,-443.7023361,0.00034725,2]
[374591578,1753365045653,-2444.38984811,0.00034725,2]
[374591579,1753365045665,-1604.7074971,0.00034725,2]
[374591580,1753365045674,-2988.31540792,0.00034747,2]
[374591581,1753365045826,-7011.68459208,0.00034747,2]
[374591582,1753365045836,-13100.7895762,0.00034757,3]
[374591583,1753365045845,-1000.0,0.00034763,2]
[374591584,1753365045854,-1176.21,0.00034767,2]
[374591585,1753365045865,-1000.0,0.00034791,2]
[374591586,1753365045874,-150.0,0.00034795,2]
[374591587,1753365045884,-150.0,0.00034795,2]
[374591588,1753365045897,-500.0,0.00034795,2]
[374591589,1753365045908,-150.0,0.00034795,2]
[374591590,1753365045917,-2172.01,0.00034801,30]
[374591591,1753365045927,-2172.01,0.00034801,30]
[374591592,1753365045937,-4492.79968128,0.00034812,2]
[374591593,1753365045946,-23772.37368565,0.00034815,3]
[374591594,1753365045966,-1217.30374853,0.00034815,3]
[374591602,1753365123286,2500.0,0.00025446,120]
[374591606,1753365747182,163.67,0.00013699,2]
[374591647,1753366231870,-881.50631733,0.0002,2]
[374591648,1753366231882,-195.80586319,0.0002119,2]
[374591649,1753366231892,-230.03,0.00021291,2]
[374591650,1753366231901,-1000.0,0.00021291,2]
[374591651,1753366231910,-156.61,0.00021291,2]
[374591652,1753366231921,-156.61,0.00021397,2]
[374591653,1753366231931,-156.61,0.00021503,2]
[374591654,1753366231940,-1200.0,0.00021999,2]
[374591655,1753366231951,-151.0,0.00022,2]
[374591656,1753366231961,-2500.0,0.00022,2]
[374591657,1753366231971,-150.0,0.0002318,2]
[374591658,1753366231980,-206.6124744,0.000239,10]
[374591659,1753366231990,-1000.0,0.00023952,2]
[374591660,1753366231999,-1200.0,0.00024018,2]
[374591661,1753366232010,-150.0,0.0002437,2]
[374591662,1753366232019,-154.0,0.0002456,2]
[374591663,1753366232029,-851.528,0.00024561,2]
[374591664,1753366232039,-2022.503,0.00024561,2]
[374591665,1753366232048,-4129.0,0.00024561,2]
[374591666,1753366232058,-152.97,0.00025,2]
[374591667,1753366232067,-304.17,0.00025043,2]
[374591668,1753366232077,-303.61,0.00025057,2]
[374591669,1753366232087,-302.33,0.00025057,2]
[374591670,1753366232097,-301.98,0.00025079,2]
[374591671,1753366232106,-302.98,0.0002508,2]
[374591672,1753366232115,-305.41,0.0002508,2]
[374591673,1753366232125,-305.8,0.00025112,2]
[374591674,1753366232135,-302.26,0.00025112,2]